[Event "Titled Tuesday Blitz April 25 Early 2023"]
[White "Rudzinska, Michalina"]
[Black "Sviridov, Valery"]
[WhiteFideId "1172883"]
[BlackFideId "4120680"]
[WhiteElo "2219"]
[BlackElo "2457"]
[Result "0-1"]
[Round "02"]
[TimeControl "180+2"]
[Date "2023.04.25"]
[WhiteClock "0:00:05"]
[BlackClock "0:01:16"]

1. e4 {[%clk 0:03:00]}  Nf6 {[%clk 0:02:56]} 2. e5 {[%clk 0:02:59]}  Nd5 {[%clk 0:02:56]} 3. d4 {[%clk 0:02:58]}  d6 {[%clk 0:02:57]} 4. c4 {[%clk 0:02:55]}  Nb6 {[%clk 0:02:57]} 5. exd6 {[%clk 0:02:56]}  exd6 {[%clk 0:02:57]} 6. Nc3 {[%clk 0:02:56]}  Be7 {[%clk 0:02:58]} 7. Be3 {[%clk 0:02:50]}  O-O {[%clk 0:02:58]} 8. Bd3 {[%clk 0:02:47]}  Nc6 {[%clk 0:02:59]} 9. Nge2 {[%clk 0:02:46]}  Bf6 {[%clk 0:03:00]} 10. b3 {[%clk 0:02:44]}  Re8 {[%clk 0:03:00]} 11. O-O {[%clk 0:02:42]}  Bg4 {[%clk 0:03:00]} 12. Qd2 {[%clk 0:02:37]}  d5 {[%clk 0:03:00]} 13. c5 {[%clk 0:02:37]}  Bxe2 {[%clk 0:03:00]} 14. Nxe2 {[%clk 0:02:30]}  Nc8 {[%clk 0:03:01]} 15. Ng3 {[%clk 0:02:28]}  g6 {[%clk 0:03:01]} 16. Bc2 {[%clk 0:02:20]}  N8e7 {[%clk 0:03:01]} 17. b4 {[%clk 0:02:13]}  a6 {[%clk 0:03:01]} 18. a4 {[%clk 0:02:13]}  a5 {[%clk 0:03:01]} 19. b5 {[%clk 0:02:13]}  Nb4 {[%clk 0:03:02]} 20. Bb1 {[%clk 0:02:12]}  Qd7 {[%clk 0:03:01]} 21. f4 {[%clk 0:01:39]}  Nf5 {[%clk 0:02:05]} 22. Nxf5 {[%clk 0:01:36]}  gxf5 {[%clk 0:02:06]} 23. Bf2 {[%clk 0:01:32]}  Rad8 {[%clk 0:01:55]} 24. Ra3 {[%clk 0:01:32]}  Re4 {[%clk 0:01:54]} 25. Rh3 {[%clk 0:01:28]}  Qe6 {[%clk 0:01:51]} 26. Bxe4 {[%clk 0:01:19]}  dxe4 {[%clk 0:01:51]} 27. Qe2 {[%clk 0:01:16]}  Bg7 {[%clk 0:01:44]} 28. Rd1 {[%clk 0:01:10]}  c6 {[%clk 0:01:43]} 29. bxc6 {[%clk 0:01:08]}  bxc6 {[%clk 0:01:43]} 30. Rg3 {[%clk 0:00:57]}  Nd5 {[%clk 0:01:42]} 31. Be3 {[%clk 0:00:55]}  Kh8 {[%clk 0:01:42]} 32. h4 {[%clk 0:00:45]}  Nc3 {[%clk 0:01:28]} 33. Qe1 {[%clk 0:00:37]}  Nxd1 {[%clk 0:01:29]} 34. Qxd1 {[%clk 0:00:38]}  Qd5 {[%clk 0:01:29]} 35. Kh2 {[%clk 0:00:33]}  Bxd4 {[%clk 0:01:28]} 36. Bxd4+ {[%clk 0:00:30]}  Qxd4 {[%clk 0:01:29]} 37. Qh5 {[%clk 0:00:30]}  Qf6 {[%clk 0:01:28]} 38. Rg5 {[%clk 0:00:27]}  Rd5 {[%clk 0:01:29]} 39. Qe2 {[%clk 0:00:26]}  h6 {[%clk 0:01:28]} 40. Rg3 {[%clk 0:00:24]}  Qxh4+ {[%clk 0:01:26]} 41. Rh3 {[%clk 0:00:23]}  Qxf4+ {[%clk 0:01:26]} 42. Kg1 {[%clk 0:00:18]}  Rxc5 {[%clk 0:01:26]} 43. Qb2+ {[%clk 0:00:17]}  Kh7 {[%clk 0:01:26]} 44. g3 {[%clk 0:00:12]}  Rc1+ {[%clk 0:01:23]} 45. Kh2 {[%clk 0:00:08]}  Qf1 {[%clk 0:01:21]} 46. Qg2 {[%clk 0:00:07]}  Qxg2+ {[%clk 0:01:21]} 47. Kxg2 {[%clk 0:00:08]}  Rc4 {[%clk 0:01:19]} 48. Rh4 {[%clk 0:00:03]}  Rxa4 {[%clk 0:01:18]} 49. g4 {[%clk 0:00:03]}  f4 {[%clk 0:01:17]} 50. g5 {[%clk 0:00:04]}  Ra2+ {[%clk 0:01:16]} 51. Kf1 {[%clk 0:00:04]}  f3 {[%clk 0:01:14]} 52. Rxh6+ {[%clk 0:00:04]}  Kg7 {[%clk 0:01:14]} 53. Rxc6 {[%clk 0:00:05]}  e3 {[%clk 0:01:14]} 54. Rc1 {[%clk 0:00:05]}  Kg6 {[%clk 0:01:15]} 55. Rb1 {[%clk 0:00:03]}  Kxg5 {[%clk 0:01:15]} 56. Kg1 {[%clk 0:00:04]}  Kf4 {[%clk 0:01:15]} 57. Kh1 {[%clk 0:00:04]}  a4 {[%clk 0:01:14]} 58. Rb4+ {[%clk 0:00:04]}  Kg3 {[%clk 0:01:14]} 59. Rb1 {[%clk 0:00:05]}  a3 {[%clk 0:01:15]} 60. Rg1+ {[%clk 0:00:05]}  Kf4 {[%clk 0:01:15]} 61. Re1 {[%clk 0:00:05]}  Rb2 {[%clk 0:01:15]} 62. Rf1 {[%clk 0:00:05]}  a2 {[%clk 0:01:16]} 63. Rd1 {[%clk 0:00:05]}  Rb1 {[%clk 0:01:16]} 0-1


[Site "https://www.chess.com"]

[Event "Titled Tuesday Blitz April 25 Early 2023"]
[White "hakanazeri2"]
[Black "Pandey Srishti"]
[BlackFideId "35093290"]
[WhiteElo "2631"]
[BlackElo "2083"]
[Result "1-0"]
[Round "02"]
[TimeControl "180+2"]
[Date "2023.04.25"]
[WhiteClock "0:01:03"]
[BlackClock "0:00:08"]

1. d4 {[%clk 0:02:59]}  Nf6 {[%clk 0:02:57]} 2. Nc3 {[%clk 0:02:58]}  d5 {[%clk 0:02:46]} 3. Bf4 {[%clk 0:02:55]}  g6 {[%clk 0:02:30]} 4. e3 {[%clk 0:02:50]}  Bg7 {[%clk 0:02:30]} 5. Nf3 {[%clk 0:02:50]}  O-O {[%clk 0:02:30]} 6. Bd3 {[%clk 0:02:49]}  Nbd7 {[%clk 0:02:23]} 7. e4 {[%clk 0:02:46]}  dxe4 {[%clk 0:02:20]} 8. Nxe4 {[%clk 0:02:47]}  Nxe4 {[%clk 0:02:17]} 9. Bxe4 {[%clk 0:02:46]}  c5 {[%clk 0:02:18]} 10. Be3 {[%clk 0:02:34]}  cxd4 {[%clk 0:02:15]} 11. Bxd4 {[%clk 0:02:32]}  e5 {[%clk 0:01:35]} 12. Be3 {[%clk 0:02:28]}  Nf6 {[%clk 0:01:27]} 13. Qxd8 {[%clk 0:02:26]}  Rxd8 {[%clk 0:01:28]} 14. Bg5 {[%clk 0:02:26]}  h6 {[%clk 0:00:55]} 15. Bxf6 {[%clk 0:02:25]}  Bxf6 {[%clk 0:00:56]} 16. c4 {[%clk 0:02:22]}  Rb8 {[%clk 0:00:46]} 17. b3 {[%clk 0:02:19]}  Bg7 {[%clk 0:00:43]} 18. Rd1 {[%clk 0:02:13]}  Rxd1+ {[%clk 0:00:41]} 19. Kxd1 {[%clk 0:02:14]}  Be6 {[%clk 0:00:41]} 20. Kc1 {[%clk 0:01:42]}  f5 {[%clk 0:00:36]} 21. Bc2 {[%clk 0:01:40]}  e4 {[%clk 0:00:34]} 22. Nd2 {[%clk 0:01:39]}  b5 {[%clk 0:00:31]} 23. Re1 {[%clk 0:01:33]}  bxc4 {[%clk 0:00:25]} 24. Nxc4 {[%clk 0:01:32]}  Bc3 {[%clk 0:00:19]} 25. Re2 {[%clk 0:01:29]}  Kg7 {[%clk 0:00:17]} 26. f3 {[%clk 0:01:28]}  Bxc4 {[%clk 0:00:16]} 27. bxc4 {[%clk 0:01:29]}  exf3 {[%clk 0:00:16]} 28. gxf3 {[%clk 0:01:29]}  Kf6 {[%clk 0:00:17]} 29. Bb3 {[%clk 0:01:29]}  Bd4 {[%clk 0:00:16]} 30. Kc2 {[%clk 0:01:28]}  a5 {[%clk 0:00:16]} 31. f4 {[%clk 0:01:25]}  g5 {[%clk 0:00:14]} 32. fxg5+ {[%clk 0:01:24]}  hxg5 {[%clk 0:00:15]} 33. c5 {[%clk 0:01:19]}  Bxc5 {[%clk 0:00:15]} 34. Re6+ {[%clk 0:01:19]}  Kg7 {[%clk 0:00:15]} 35. Re5 {[%clk 0:01:19]}  Bd6 {[%clk 0:00:14]} 36. Rxf5 {[%clk 0:01:19]}  Bxh2 {[%clk 0:00:14]} 37. Rxg5+ {[%clk 0:01:19]}  Kf6 {[%clk 0:00:15]} 38. Rxa5 {[%clk 0:01:20]}  Bd6 {[%clk 0:00:13]} 39. Kd3 {[%clk 0:01:18]}  Ke7 {[%clk 0:00:12]} 40. Rh5 {[%clk 0:01:16]}  Bb4 {[%clk 0:00:12]} 41. Rh6 {[%clk 0:01:16]}  Ba3 {[%clk 0:00:12]} 42. Kc4 {[%clk 0:01:15]}  Kd7 {[%clk 0:00:12]} 43. Ba4+ {[%clk 0:01:14]}  Ke7 {[%clk 0:00:11]} 44. Bb5 {[%clk 0:01:13]}  Bd6 {[%clk 0:00:10]} 45. a4 {[%clk 0:01:12]}  Bc7 {[%clk 0:00:10]} 46. Kc5 {[%clk 0:01:11]}  Ba5 {[%clk 0:00:09]} 47. Ra6 {[%clk 0:01:10]}  Rc8+ {[%clk 0:00:09]} 48. Bc6 {[%clk 0:01:09]}  Be1 {[%clk 0:00:10]} 49. Ra7+ {[%clk 0:01:09]}  Ke6 {[%clk 0:00:10]} 50. Rh7 {[%clk 0:01:07]}  Ke5 {[%clk 0:00:08]} 51. Re7+ {[%clk 0:01:04]}  Kf6 {[%clk 0:00:07]} 52. Rxe1 {[%clk 0:01:05]}  Rb8 {[%clk 0:00:08]} 53. a5 {[%clk 0:01:04]}  Rb2 {[%clk 0:00:07]} 54. Ra1 {[%clk 0:01:01]}  Ra2 {[%clk 0:00:08]} 55. Rxa2 {[%clk 0:01:01]}  Ke5 {[%clk 0:00:06]} 56. a6 {[%clk 0:01:02]}  Kf4 {[%clk 0:00:07]} 57. a7 {[%clk 0:01:02]}  Ke3 {[%clk 0:00:08]} 58. a8=Q {[%clk 0:01:03]} 1-0


[Site "https://www.chess.com"]

[Event "Titled Tuesday Blitz April 25 Early 2023"]
[White "Ansh M Shah"]
[Black "TartineDeNutella"]
[WhiteFideId "25033379"]
[WhiteElo "2084"]
[BlackElo "2619"]
[Result "0-1"]
[Round "02"]
[TimeControl "180+2"]
[Date "2023.04.25"]
[WhiteClock "0:00:04"]
[BlackClock "0:01:08"]

1. d4 {[%clk 0:03:00]}  Nf6 {[%clk 0:02:57]} 2. c4 {[%clk 0:03:01]}  e6 {[%clk 0:02:57]} 3. g3 {[%clk 0:03:02]}  Bb4+ {[%clk 0:02:53]} 4. Nd2 {[%clk 0:03:01]}  O-O {[%clk 0:02:53]} 5. Bg2 {[%clk 0:03:01]}  d5 {[%clk 0:02:52]} 6. Nf3 {[%clk 0:03:01]}  c6 {[%clk 0:02:51]} 7. O-O {[%clk 0:02:59]}  Ne4 {[%clk 0:02:50]} 8. Qc2 {[%clk 0:02:54]}  f5 {[%clk 0:02:49]} 9. a3 {[%clk 0:02:46]}  Bd6 {[%clk 0:02:48]} 10. Ne5 {[%clk 0:02:37]}  Nxd2 {[%clk 0:02:41]} 11. Bxd2 {[%clk 0:02:36]}  Nd7 {[%clk 0:02:42]} 12. Nxd7 {[%clk 0:02:19]}  Bxd7 {[%clk 0:02:43]} 13. f3 {[%clk 0:02:11]}  Qf6 {[%clk 0:02:42]} 14. Bc3 {[%clk 0:02:09]}  f4 {[%clk 0:02:37]} 15. e4 {[%clk 0:01:35]}  Be7 {[%clk 0:02:07]} 16. Rae1 {[%clk 0:01:11]}  Rae8 {[%clk 0:02:03]} 17. e5 {[%clk 0:00:49]}  Qh6 {[%clk 0:01:57]} 18. Bd2 {[%clk 0:00:25]}  Bg5 {[%clk 0:01:55]} 19. g4 {[%clk 0:00:20]}  Rc8 {[%clk 0:01:39]} 20. Rc1 {[%clk 0:00:18]}  Be8 {[%clk 0:01:39]} 21. c5 {[%clk 0:00:18]}  Bg6 {[%clk 0:01:39]} 22. Qd1 {[%clk 0:00:17]}  Bd3 {[%clk 0:01:38]} 23. Re1 {[%clk 0:00:17]}  Bh4 {[%clk 0:01:36]} 24. Bf1 {[%clk 0:00:11]}  Bxe1 {[%clk 0:01:24]} 25. Bxd3 {[%clk 0:00:11]}  Bxd2 {[%clk 0:01:21]} 26. Qxd2 {[%clk 0:00:12]}  Qh3 {[%clk 0:01:21]} 27. Qf2 {[%clk 0:00:11]}  b6 {[%clk 0:01:19]} 28. b4 {[%clk 0:00:08]}  Qh6 {[%clk 0:01:18]} 29. cxb6 {[%clk 0:00:06]}  axb6 {[%clk 0:01:18]} 30. b5 {[%clk 0:00:06]}  cxb5 {[%clk 0:01:12]} 31. Rb1 {[%clk 0:00:06]}  Rc3 {[%clk 0:01:12]} 32. Bxb5 {[%clk 0:00:06]}  Qg6 {[%clk 0:01:09]} 33. Bf1 {[%clk 0:00:04]}  Qxb1 {[%clk 0:01:08]} 0-1


[Site "https://www.chess.com"]

[Event "Titled Tuesday Blitz April 25 Early 2023"]
[White "Al Mukhaini, Shima"]
[Black "Pacan-Milej, Kosma"]
[WhiteFideId "22005854"]
[BlackFideId "21800537"]
[WhiteElo "2371"]
[BlackElo "2302"]
[Result "0-1"]
[Round "02"]
[TimeControl "180+2"]
[Date "2023.04.25"]
[WhiteClock "0:00:52"]
[BlackClock "0:00:48"]

1. e4 {[%clk 0:03:00]}  c6 {[%clk 0:02:58]} 2. d4 {[%clk 0:03:00]}  d5 {[%clk 0:02:59]} 3. Bd3 {[%clk 0:02:58]}  dxe4 {[%clk 0:02:58]} 4. Bxe4 {[%clk 0:02:59]}  Nf6 {[%clk 0:02:59]} 5. Bf3 {[%clk 0:02:59]}  g6 {[%clk 0:02:58]} 6. Ne2 {[%clk 0:02:57]}  Bg7 {[%clk 0:02:57]} 7. Bf4 {[%clk 0:02:56]}  O-O {[%clk 0:02:56]} 8. O-O {[%clk 0:02:56]}  Nd5 {[%clk 0:02:53]} 9. Bg3 {[%clk 0:02:53]}  Qb6 {[%clk 0:02:52]} 10. c4 {[%clk 0:02:43]}  Qxb2 {[%clk 0:02:47]} 11. cxd5 {[%clk 0:02:43]}  Qxa1 {[%clk 0:02:48]} 12. Qc2 {[%clk 0:02:33]}  Bf5 {[%clk 0:02:41]} 13. Qb3 {[%clk 0:02:29]}  c5 {[%clk 0:02:00]} 14. Nbc3 {[%clk 0:02:11]}  c4 {[%clk 0:01:51]} 15. Qa3 {[%clk 0:02:08]}  Qxf1+ {[%clk 0:01:36]} 16. Kxf1 {[%clk 0:02:09]}  Nd7 {[%clk 0:01:35]} 17. Qxe7 {[%clk 0:02:04]}  Rfe8 {[%clk 0:01:34]} 18. Qb4 {[%clk 0:02:04]}  Bd3 {[%clk 0:01:30]} 19. Qxb7 {[%clk 0:02:00]}  Bxd4 {[%clk 0:01:23]} 20. Qxd7 {[%clk 0:01:57]}  Bxc3 {[%clk 0:01:21]} 21. d6 {[%clk 0:01:46]}  Rab8 {[%clk 0:01:15]} 22. Qxe8+ {[%clk 0:01:14]}  Rxe8 {[%clk 0:01:14]} 23. d7 {[%clk 0:01:14]}  Rd8 {[%clk 0:01:13]} 24. Bc6 {[%clk 0:01:14]}  Ba5 {[%clk 0:01:01]} 25. Bh4 {[%clk 0:01:13]}  Rb8 {[%clk 0:00:49]} 26. f4 {[%clk 0:01:02]}  c3 {[%clk 0:00:47]} 27. Kf2 {[%clk 0:00:59]}  Bxe2 {[%clk 0:00:47]} 28. Kxe2 {[%clk 0:00:59]}  c2 {[%clk 0:00:47]} 29. d8=Q+ {[%clk 0:00:52]}  Bxd8 {[%clk 0:00:47]} 30. Bxd8 {[%clk 0:00:52]}  Rxd8 {[%clk 0:00:48]} 0-1


[Site "https://www.chess.com"]

[Event "Titled Tuesday Blitz April 25 Early 2023"]
[White "Lenaerts, Lennert"]
[Black "littlepillow2010"]
[WhiteFideId "211435"]
[WhiteElo "2334"]
[BlackElo "2368"]
[Result "1-0"]
[Round "02"]
[TimeControl "180+2"]
[Date "2023.04.25"]
[WhiteClock "0:01:50"]
[BlackClock "0:00:01"]

1. d4 {[%clk 0:03:00]}  d5 {[%clk 0:02:59]} 2. c4 {[%clk 0:03:01]}  c6 {[%clk 0:02:58]} 3. cxd5 {[%clk 0:03:00]}  cxd5 {[%clk 0:02:58]} 4. Bf4 {[%clk 0:03:01]}  Nf6 {[%clk 0:02:59]} 5. Nc3 {[%clk 0:03:02]}  Nc6 {[%clk 0:02:57]} 6. e3 {[%clk 0:03:02]}  Bf5 {[%clk 0:02:55]} 7. Nf3 {[%clk 0:03:02]}  Qb6 {[%clk 0:02:55]} 8. Bd3 {[%clk 0:02:47]}  Qxb2 {[%clk 0:02:40]} 9. Bxf5 {[%clk 0:02:43]}  Qxc3+ {[%clk 0:02:38]} 10. Nd2 {[%clk 0:02:44]}  e6 {[%clk 0:02:37]} 11. Bc2 {[%clk 0:02:44]}  Bb4 {[%clk 0:02:33]} 12. Rb1 {[%clk 0:02:41]}  Na5 {[%clk 0:02:04]} 13. Ba4+ {[%clk 0:02:33]}  Ke7 {[%clk 0:02:02]} 14. Rc1 {[%clk 0:02:33]}  Qxd2+ {[%clk 0:01:40]} 15. Qxd2 {[%clk 0:02:34]}  Bxd2+ {[%clk 0:01:40]} 16. Kxd2 {[%clk 0:02:35]}  Nc4+ {[%clk 0:01:40]} 17. Ke2 {[%clk 0:02:32]}  a6 {[%clk 0:01:38]} 18. f3 {[%clk 0:02:31]}  b5 {[%clk 0:01:37]} 19. Bb3 {[%clk 0:02:31]}  Rhc8 {[%clk 0:01:33]} 20. g4 {[%clk 0:02:31]}  Na5 {[%clk 0:01:28]} 21. Bc2 {[%clk 0:02:24]}  h6 {[%clk 0:00:50]} 22. Bd3 {[%clk 0:02:22]}  Kd7 {[%clk 0:00:41]} 23. h4 {[%clk 0:02:20]}  Rxc1 {[%clk 0:00:38]} 24. Rxc1 {[%clk 0:02:21]}  Rc8 {[%clk 0:00:38]} 25. Rb1 {[%clk 0:02:20]}  Rc3 {[%clk 0:00:17]} 26. g5 {[%clk 0:02:13]}  hxg5 {[%clk 0:00:16]} 27. hxg5 {[%clk 0:02:14]}  Ne8 {[%clk 0:00:08]} 28. Rh1 {[%clk 0:02:12]}  Ra3 {[%clk 0:00:07]} 29. Bb1 {[%clk 0:02:12]}  Nc4 {[%clk 0:00:05]} 30. Rh7 {[%clk 0:02:05]}  b4 {[%clk 0:00:04]} 31. e4 {[%clk 0:02:01]}  a5 {[%clk 0:00:03]} 32. exd5 {[%clk 0:02:01]}  exd5 {[%clk 0:00:04]} 33. Rh1 {[%clk 0:01:56]}  a4 {[%clk 0:00:04]} 34. Bc1 {[%clk 0:01:55]}  Rc3 {[%clk 0:00:03]} 35. Bf4 {[%clk 0:01:52]}  b3 {[%clk 0:00:03]} 36. axb3 {[%clk 0:01:53]}  Rxb3 {[%clk 0:00:03]} 37. Bc2 {[%clk 0:01:52]}  Rb2 {[%clk 0:00:03]} 38. Kd3 {[%clk 0:01:52]}  a3 {[%clk 0:00:03]} 39. Ba4+ {[%clk 0:01:51]}  Kd8 {[%clk 0:00:03]} 40. Rh8 {[%clk 0:01:50]}  Nd6 {[%clk 0:00:01]} 41. Bxd6 {[%clk 0:01:50]} 1-0


[Site "https://www.chess.com"]

[Event "Titled Tuesday Blitz April 25 Early 2023"]
[White "Luukkonen, Tommi"]
[Black "Juhasz, Agoston"]
[WhiteFideId "501808"]
[BlackFideId "778346"]
[WhiteElo "2296"]
[BlackElo "2211"]
[Result "0-1"]
[Round "02"]
[TimeControl "180+2"]
[Date "2023.04.25"]
[WhiteClock "0:00:02"]
[BlackClock "0:00:24"]

1. e4 {[%clk 0:02:30]}  Nf6 {[%clk 0:02:55]} 2. e5 {[%clk 0:02:30]}  Nd5 {[%clk 0:02:56]} 3. d4 {[%clk 0:02:30]}  d6 {[%clk 0:02:56]} 4. c4 {[%clk 0:02:31]}  Nb6 {[%clk 0:02:57]} 5. f4 {[%clk 0:02:32]}  g6 {[%clk 0:02:50]} 6. Nc3 {[%clk 0:02:29]}  Bg7 {[%clk 0:02:50]} 7. Be3 {[%clk 0:02:30]}  Kf8 {[%clk 0:02:49]} 8. Nf3 {[%clk 0:02:19]}  Bg4 {[%clk 0:02:46]} 9. Qd2 {[%clk 0:02:17]}  Bxf3 {[%clk 0:02:44]} 10. gxf3 {[%clk 0:02:18]}  N8d7 {[%clk 0:02:35]} 11. h4 {[%clk 0:02:10]}  h5 {[%clk 0:02:27]} 12. O-O-O {[%clk 0:02:09]}  e6 {[%clk 0:02:27]} 13. Ne4 {[%clk 0:02:06]}  d5 {[%clk 0:02:24]} 14. Nc5 {[%clk 0:02:00]}  dxc4 {[%clk 0:02:12]} 15. Nxb7 {[%clk 0:01:54]}  Qe7 {[%clk 0:02:08]} 16. Nc5 {[%clk 0:01:48]}  Kg8 {[%clk 0:02:07]} 17. Rg1 {[%clk 0:01:45]}  Kh7 {[%clk 0:02:07]} 18. Qc2 {[%clk 0:01:45]}  Rhd8 {[%clk 0:02:01]} 19. Ne4 {[%clk 0:01:42]}  Nd5 {[%clk 0:01:58]} 20. Bd2 {[%clk 0:01:39]}  c5 {[%clk 0:01:50]} 21. dxc5 {[%clk 0:01:32]}  Nxc5 {[%clk 0:01:49]} 22. Nd6 {[%clk 0:01:30]}  Rxd6 {[%clk 0:01:00]} 23. exd6 {[%clk 0:01:31]}  Qxd6 {[%clk 0:01:01]} 24. Bxc4 {[%clk 0:01:14]}  Rb8 {[%clk 0:00:55]} 25. b3 {[%clk 0:01:14]}  a5 {[%clk 0:00:48]} 26. Rg5 {[%clk 0:01:02]}  a4 {[%clk 0:00:45]} 27. Rxh5+ {[%clk 0:01:02]}  Kg8 {[%clk 0:00:46]} 28. b4 {[%clk 0:00:13]}  gxh5 {[%clk 0:00:28]} 29. bxc5 {[%clk 0:00:10]}  Qxc5 {[%clk 0:00:27]} 30. Rg1 {[%clk 0:00:02]}  Qxg1+ {[%clk 0:00:24]} 0-1


[Site "https://www.chess.com"]

[Event "Titled Tuesday Blitz April 25 Early 2023"]
[White "Luong Phuong Hanh"]
[Black "Golichenko, Ilija"]
[WhiteFideId "12401013"]
[BlackFideId "14117223"]
[WhiteElo "2081"]
[BlackElo "2339"]
[Result "0-1"]
[Round "02"]
[TimeControl "180+2"]
[Date "2023.04.25"]
[WhiteClock "0:00:07"]
[BlackClock "0:01:37"]

1. d4 {[%clk 0:03:00]}  Nf6 {[%clk 0:02:56]} 2. Nf3 {[%clk 0:02:59]}  e6 {[%clk 0:02:53]} 3. e3 {[%clk 0:02:58]}  b6 {[%clk 0:02:52]} 4. Bd3 {[%clk 0:02:58]}  Bb7 {[%clk 0:02:52]} 5. O-O {[%clk 0:02:59]}  d5 {[%clk 0:02:53]} 6. b3 {[%clk 0:02:58]}  Bd6 {[%clk 0:02:53]} 7. Bb2 {[%clk 0:02:58]}  O-O {[%clk 0:02:54]} 8. Nbd2 {[%clk 0:02:57]}  Ne4 {[%clk 0:02:54]} 9. Ne5 {[%clk 0:02:57]}  f6 {[%clk 0:02:54]} 10. Nef3 {[%clk 0:02:38]}  Nd7 {[%clk 0:02:52]} 11. Ne1 {[%clk 0:02:32]}  f5 {[%clk 0:02:51]} 12. f3 {[%clk 0:02:31]}  Bxh2+ {[%clk 0:02:44]} 13. Kxh2 {[%clk 0:02:29]}  Qh4+ {[%clk 0:02:43]} 14. Kg1 {[%clk 0:02:29]}  Ng3 {[%clk 0:02:44]} 15. f4 {[%clk 0:02:19]}  Nf6 {[%clk 0:02:39]} 16. Nef3 {[%clk 0:01:05]}  Qh1+ {[%clk 0:02:26]} 17. Kf2 {[%clk 0:01:05]}  Nxf1 {[%clk 0:02:26]} 18. Qxf1 {[%clk 0:01:05]}  Ng4+ {[%clk 0:02:26]} 19. Ke2 {[%clk 0:01:00]}  Qh6 {[%clk 0:02:19]} 20. Qh1 {[%clk 0:00:59]}  Qg6 {[%clk 0:02:15]} 21. Ne5 {[%clk 0:00:49]}  Nxe5 {[%clk 0:02:15]} 22. dxe5 {[%clk 0:00:46]}  c5 {[%clk 0:02:14]} 23. Kf2 {[%clk 0:00:37]}  Rfd8 {[%clk 0:02:02]} 24. Be2 {[%clk 0:00:30]}  d4 {[%clk 0:01:59]} 25. exd4 {[%clk 0:00:29]}  cxd4 {[%clk 0:01:59]} 26. Qh5 {[%clk 0:00:23]}  Qxg2+ {[%clk 0:01:57]} 27. Ke1 {[%clk 0:00:22]}  Qg3+ {[%clk 0:01:54]} 28. Kd1 {[%clk 0:00:21]}  Qxf4 {[%clk 0:01:54]} 29. Bd3 {[%clk 0:00:15]}  Be4 {[%clk 0:01:45]} 30. Bxe4 {[%clk 0:00:12]}  fxe4 {[%clk 0:01:46]} 31. Qe2 {[%clk 0:00:11]}  d3 {[%clk 0:01:39]} 32. cxd3 {[%clk 0:00:09]}  Rxd3 {[%clk 0:01:39]} 33. Rc1 {[%clk 0:00:07]}  Rad8 {[%clk 0:01:37]} 34. Rc2 {[%clk 0:00:07]}  e3 {[%clk 0:01:37]} 0-1


[Site "https://www.chess.com"]

[Event "Titled Tuesday Blitz April 25 Early 2023"]
[White "Asavasaetakul, Chawit"]
[Black "Xie, Bryan"]
[WhiteFideId "6204856"]
[BlackFideId "30941296"]
[WhiteElo "1919"]
[BlackElo "2033"]
[Result "1-0"]
[Round "02"]
[TimeControl "180+2"]
[Date "2023.04.25"]
[WhiteClock "0:00:41"]
[BlackClock "0:00:09"]

1. e4 {[%clk 0:03:00]}  c5 {[%clk 0:02:56]} 2. c3 {[%clk 0:02:59]}  Nf6 {[%clk 0:02:54]} 3. e5 {[%clk 0:02:59]}  Nd5 {[%clk 0:02:54]} 4. d4 {[%clk 0:02:59]}  cxd4 {[%clk 0:02:55]} 5. cxd4 {[%clk 0:03:00]}  e6 {[%clk 0:02:55]} 6. Nf3 {[%clk 0:03:00]}  d6 {[%clk 0:02:55]} 7. Bc4 {[%clk 0:02:59]}  Be7 {[%clk 0:02:55]} 8. O-O {[%clk 0:02:59]}  O-O {[%clk 0:02:55]} 9. Qe2 {[%clk 0:03:00]}  b6 {[%clk 0:02:56]} 10. Nc3 {[%clk 0:02:55]}  Nxc3 {[%clk 0:02:55]} 11. bxc3 {[%clk 0:02:54]}  Bb7 {[%clk 0:02:55]} 12. Rd1 {[%clk 0:02:51]}  Nd7 {[%clk 0:02:50]} 13. d5 {[%clk 0:02:43]}  Qc7 {[%clk 0:01:44]} 14. dxe6 {[%clk 0:02:30]}  Bxf3 {[%clk 0:01:43]} 15. exf7+ {[%clk 0:02:10]}  Kh8 {[%clk 0:01:40]} 16. gxf3 {[%clk 0:02:04]}  Nxe5 {[%clk 0:01:38]} 17. Bd5 {[%clk 0:02:04]}  Rac8 {[%clk 0:01:01]} 18. Bb2 {[%clk 0:01:34]}  Nxf7 {[%clk 0:00:42]} 19. c4 {[%clk 0:01:33]}  Ne5 {[%clk 0:00:42]} 20. Kh1 {[%clk 0:00:54]}  Rf6 {[%clk 0:00:36]} 21. Rg1 {[%clk 0:00:53]}  Rcf8 {[%clk 0:00:35]} 22. Rg3 {[%clk 0:00:52]}  Rh6 {[%clk 0:00:17]} 23. Rag1 {[%clk 0:00:52]}  Bf6 {[%clk 0:00:14]} 24. f4 {[%clk 0:00:51]}  Ng6 {[%clk 0:00:14]} 25. Bxf6 {[%clk 0:00:44]}  Rxf6 {[%clk 0:00:09]} 26. Rxg6 {[%clk 0:00:42]}  hxg6 {[%clk 0:00:09]} 27. Qe8+ {[%clk 0:00:41]} 1-0


[Site "https://www.chess.com"]

[Event "Titled Tuesday Blitz April 25 Early 2023"]
[White "Gontcharov, Vladislav"]
[Black "Degtiarev, Evgeny"]
[WhiteFideId "4123492"]
[BlackFideId "4149610"]
[WhiteElo "2420"]
[BlackElo "2284"]
[Result "1-0"]
[Round "02"]
[TimeControl "180+2"]
[Date "2023.04.25"]
[WhiteClock "0:01:16"]
[BlackClock "0:00:51"]

1. e4 {[%clk 0:03:00]}  e5 {[%clk 0:02:59]} 2. Nf3 {[%clk 0:02:59]}  Nc6 {[%clk 0:02:58]} 3. Bb5 {[%clk 0:02:59]}  Nf6 {[%clk 0:02:57]} 4. d3 {[%clk 0:02:53]}  Bc5 {[%clk 0:02:56]} 5. O-O {[%clk 0:02:52]}  d6 {[%clk 0:02:52]} 6. c3 {[%clk 0:02:50]}  O-O {[%clk 0:02:48]} 7. Bg5 {[%clk 0:02:45]}  h6 {[%clk 0:02:43]} 8. Bh4 {[%clk 0:02:45]}  Bg4 {[%clk 0:02:39]} 9. h3 {[%clk 0:02:42]}  Bxf3 {[%clk 0:02:38]} 10. Qxf3 {[%clk 0:02:42]}  g5 {[%clk 0:02:39]} 11. Bg3 {[%clk 0:02:42]}  Kg7 {[%clk 0:02:34]} 12. Nd2 {[%clk 0:02:36]}  Ne7 {[%clk 0:02:29]} 13. Ba4 {[%clk 0:02:21]}  Ng6 {[%clk 0:02:25]} 14. Bc2 {[%clk 0:02:17]}  Bb6 {[%clk 0:02:03]} 15. Rfe1 {[%clk 0:02:16]}  c5 {[%clk 0:02:03]} 16. Nf1 {[%clk 0:02:14]}  Qd7 {[%clk 0:01:52]} 17. Ne3 {[%clk 0:02:13]}  Ne7 {[%clk 0:01:53]} 18. Rad1 {[%clk 0:02:10]}  h5 {[%clk 0:01:47]} 19. h4 {[%clk 0:02:06]}  g4 {[%clk 0:01:43]} 20. Qe2 {[%clk 0:02:06]}  Rg8 {[%clk 0:01:37]} 21. Kh2 {[%clk 0:02:06]}  Bd8 {[%clk 0:01:29]} 22. Rf1 {[%clk 0:02:03]}  Kf8 {[%clk 0:01:17]} 23. d4 {[%clk 0:02:02]}  Qe6 {[%clk 0:00:59]} 24. Bb3 {[%clk 0:01:59]}  Qc8 {[%clk 0:00:54]} 25. dxe5 {[%clk 0:01:59]}  dxe5 {[%clk 0:00:54]} 26. Bxe5 {[%clk 0:01:21]}  Bc7 {[%clk 0:00:53]} 27. Bxc7 {[%clk 0:01:19]}  Qxc7+ {[%clk 0:00:54]} 28. g3 {[%clk 0:01:19]}  Nxe4 {[%clk 0:00:51]} 29. Qc4 {[%clk 0:01:16]} 1-0


[Site "https://www.chess.com"]